bitfinex/quotes_ETHUSD_20250725
["timestamp","ask_amount","ask_price","bid_price","bid_amount"]
[1753444551164,0.1344,3723.3,3722.9,5.2923]
[1753444551364,0.1344,3723.3,3723.0,1.1343]
[1753444551762,0.1344,3723.3,3723.1,1.1343]
[1753444551983,2.68597928,3723.1,3722.6,0.671]
[1753444552150,0.1344,3723.1,3722.7,1.1343]
[1753444552357,0.1344,3723.1,3722.8,4.829]
[1753444552886,0.1344,3723.1,3722.9,0.671]
[1753444553785,0.1344,3723.1,3723.0,1.1343]
[1753444554786,0.1344,3723.1,3723.0,0.671]
[1753444554787,2.82034916,3723.1,3723.0,0.671]
[1753444555168,0.1344,3723.1,3723.0,1.1343]
[1753444556595,2.82033376,3723.1,3723.0,0.671]
[1753444556802,2.68607172,3723.0,3722.8,4.158]
[1753444557158,2.68607172,3723.0,3722.8,4.829]
[1753444557358,2.68607172,3723.0,3722.6,0.671]
[1753444557663,2.8203565,3723.1,3722.7,4.828]
[1753444557966,2.8203565,3723.1,3722.7,0.671]
[1753444557967,2.68609837,3722.9,3722.7,0.671]
[1753444558175,2.6860059,3723.0,3722.8,4.157]
[1753444558395,2.6860059,3723.0,3722.9,4.157]
[1753444559801,2.82034331,3723.1,3722.7,0.671]
[1753444560007,2.82034331,3723.1,3722.8,4.157]
[1753444560306,2.82035702,3723.1,3722.9,4.156]
[1753444560509,0.1344,3723.1,3723.0,0.671]
[1753444560909,2.82033376,3723.1,3723.0,0.671]
[1753444561756,0.1344,3723.1,3723.0,0.671]
[1753444562062,0.1344,3723.1,3723.0,1.1343]
[1753444562451,0.1344,3723.1,3723.0,4.827]
[1753444562631,2.82033376,3723.1,3723.0,4.827]
[1753444562804,0.1344,3723.1,3723.0,4.827]
[1753444563944,0.1344,3723.1,3723.0,5.2903]
[1753444564708,0.002,3723.7,3723.1,2.68591784]
[1753444564903,0.1364,3723.7,3723.2,4.31725861]
[1753444565144,0.1364,3723.7,3723.2,5.45155861]
[1753444565345,0.1364,3723.7,3723.3,1.1343]
[1753444565550,0.1364,3723.7,3723.4,4.156]
[1753444565746,0.1364,3723.7,3723.4,5.2903]
[1753444565974,0.1364,3723.7,3723.5,1.1343]
[1753444566274,0.1364,3723.7,3723.6,4.156]
[1753444566677,0.1364,3723.7,3723.6,5.2797]
[1753444568379,0.1364,3723.7,3723.6,9.25201454]
[1753444568541,0.002,3723.7,3723.6,10.03601454]
[1753444570046,0.002,3723.7,3723.6,5.88001454]
[1753444570259,0.002,3723.7,3723.6,10.03501454]
[1753444570947,0.002,3723.7,3723.6,7.34944144]
[1753444571348,0.002,3723.7,3723.6,10.03501454]
[1753444573253,0.002,3723.7,3723.6,7.34944144]
[1753444573880,0.002,3723.7,3723.6,10.03501454]
[1753444578096,0.002,3723.7,3723.6,7.34944144]
[1753444578299,0.002,3723.7,3723.6,10.03501454]
[1753444580020,0.002,3723.7,3723.6,25.03501454]
[1753444587510,0.002,3723.7,3723.6,25.03201454]
[1753444590027,0.002,3723.7,3723.6,28.03201454]
[1753444590227,1e-08,3723.7,3723.6,28.03201454]
[1753444590426,1e-08,3723.7,3723.6,13.03201454]
[1753444591089,1e-08,3723.9,3723.8,2.68542886]
[1753444591293,0.002,3724.9,3724.5,1.118]
[1753444591500,0.002,3724.9,3724.4,2.68499624]
[1753444591501,1e-08,3725.4,3725.2,2.68441962]
[1753444591804,1e-08,3725.4,3725.2,20.63273289]
[1753444592159,1e-08,3725.4,3725.2,21.89083289]
[1753444592429,0.002,3726.2,3725.6,2.68413141]
[1753444592632,0.002,3726.2,3725.6,15.16205581]
[1753444592833,0.002,3726.2,3725.7,2.68405937]
[1753444593009,0.002,3726.2,3725.7,7.96369996]
[1753444593209,0.002,3726.2,3725.7,7.93685937]
[1753444593409,0.002,3726.2,3725.7,8.48685937]
[1753444593627,0.002,3726.2,3725.7,11.00457868]
[1753444595320,0.002,3726.2,3725.7,11.25452331]
[1753444596529,0.002,3726.2,3726.1,3.75397123]
[1753444596715,0.002,3726.2,3726.1,17.41206684]
[1753444596918,0.002,3726.2,3726.1,19.17492913]
[1753444597226,0.002,3726.2,3726.1,21.62920669]
[1753444597831,0.002,3726.2,3726.1,17.48020669]
[1753444598012,0.002,3726.2,3726.1,21.62920669]
[1753444598825,0.1344,3727.6,3726.3,6.23231327]
[1753444599026,0.1344,3727.6,3727.0,0.1344]
[1753444599027,2.81715047,3727.6,3727.0,0.1344]
[1753444599246,2.81715047,3727.6,3727.1,4.39794463]
[1753444599445,2.81715047,3727.6,3727.2,0.24994463]
[1753444599742,2.81715047,3727.6,3727.3,4.39794463]
[1753444599924,2.81715047,3727.6,3727.4,4.39694463]
[1753444600125,2.81715047,3727.6,3727.4,4.147]
[1753444600644,2.68276324,3727.5,3727.4,4.147]
[1753444600823,2.76016324,3727.5,3727.4,4.147]
[1753444601150,0.0774,3727.5,3727.4,4.147]
[1753444601713,3.82566324,3727.5,3727.4,4.147]
[1753444602244,1.0655,3727.5,3727.4,4.147]
[1753444603153,2.81710416,3727.6,3727.4,4.147]
[1753444603154,0.1344,3727.6,3727.4,4.146]
[1753444603834,1.0818,3727.8,3727.5,0.02682763]
[1753444604032,0.1344,3727.9,3727.6,4.146]
[1753444605246,1.1133,3727.8,3727.3,0.1344]
[1753444605449,0.0774,3727.7,3727.4,0.24842229]
[1753444605624,0.0774,3727.7,3726.7,2.1452]
[1753444605625,0.1344,3727.6,3727.5,4.146]
[1753444607849,0.1344,3727.6,3727.1,2.68303812]
[1753444608158,0.1344,3727.6,3727.2,7.07635503]
[1753444608452,0.1344,3727.6,3727.2,4.145]
[1753444608747,0.1344,3727.6,3727.1,2.68302106]
[1753444608952,0.1344,3727.6,3727.2,5.49869517]
[1753444609154,0.1344,3727.6,3727.2,7.29813065]
[1753444609313,0.1344,3727.6,3727.2,7.29815024]
[1753444609517,0.1344,3727.6,3727.2,4.145]
[1753444609951,0.1344,3727.6,3727.0,0.1344]
[1753444610254,1.0512,3727.2,3727.1,4.39343138]
[1753444610440,1.0512,3727.2,3727.1,4.145]
[1753444611777,1.0512,3727.2,3727.1,4.144]
[1753444612149,0.1344,3727.3,3727.1,4.144]
[1753444613649,1.1062,3727.2,3726.9,6.444]
[1753444613893,0.1344,3727.1,3727.0,4.144]
[1753444614290,0.1344,3727.1,3727.0,4.39293914]
[1753444614582,0.1344,3727.1,3727.0,4.86313914]
[1753444615566,0.1344,3727.1,3727.0,4.39309526]
[1753444615770,0.1344,3727.1,3727.0,4.39309537]
[1753444620072,0.1344,3727.1,3727.0,4.86329537]
[1753444620774,0.1344,3727.1,3727.0,0.24909537]
[1753444621096,0.1344,3727.1,3727.0,0.25045799]
[1753444621097,2.81745116,3727.1,3727.0,0.25045799]
[1753444621299,2.89485116,3727.1,3727.0,4.39345799]
[1753444621461,5.89485116,3727.1,3727.0,4.39345799]
[1753444621662,6.97245116,3727.1,3727.0,4.39345799]
[1753444623599,6.97245116,3727.1,3727.0,4.39406301]
[1753444624395,6.89505116,3727.1,3727.0,4.39406301]
[1753444626411,3.89505116,3727.1,3727.0,4.39406301]
[1753444627971,3.89505116,3727.1,3727.0,4.86066301]
[1753444628171,0.1344,3727.1,3727.0,4.86066301]
[1753444628477,0.1344,3727.1,3727.0,5.54326301]
[1753444629126,0.1344,3727.1,3727.0,8.22638616]
[1753444629267,1.0992,3728.0,3727.1,5.68304161]
[1753444629469,0.1344,3727.4,3727.2,3.40061809]
[1753444629686,0.1344,3727.4,3727.3,4.85966301]
[1753444631004,0.1344,3727.4,3726.7,3.36588848]
[1753444631005,2.68355247,3726.5,3726.0,0.6826]
[1753444631208,1.1735,3726.6,3726.1,4.142]
[1753444631408,2.68369921,3726.2,3726.1,4.142]
[1753444632101,2.68387025,3726.0,3725.6,0.4666]
[1753444632272,2.68387025,3726.0,3725.7,4.141]
[1753444632473,2.68379302,3726.1,3725.8,0.4666]
[1753444632670,2.68379302,3726.1,3725.9,4.6076]
[1753444634077,2.6837957,3726.1,3725.9,4.6076]
[1753444634884,2.68384326,3726.0,3725.9,4.6076]
[1753444635411,2.68348316,3726.5,3725.5,0.001]
[1753444635721,3.83543141,3725.6,3725.5,0.001]
[1753444635902,3.83543141,3725.6,3725.5,4.142]
[1753444636427,1.1513,3725.6,3725.5,4.142]
[1753444636627,3.83543141,3725.6,3725.5,4.142]
[1753444638820,2.68413141,3725.6,3725.5,4.142]
[1753444640911,2.81853141,3725.6,3725.5,4.142]
[1753444643242,0.1344,3725.6,3725.5,4.142]
[1753444643425,0.1344,3725.6,3725.5,4.6086]
[1753444644059,2.81853141,3725.6,3725.5,4.6086]
[1753444644212,0.1344,3725.6,3725.5,5.2912]
[1753444644610,2.68375681,3726.2,3725.5,10.24422346]
[1753444644851,0.1344,3725.8,3725.6,4.6076]
[1753444645165,0.1344,3725.8,3725.7,1.1492]
[1753444645515,0.1344,3725.8,3725.7,3.83325937]
[1753444645935,0.1344,3725.8,3725.7,1.1492]
[1753444646115,0.1344,3725.8,3725.7,3.08633983]
[1753444646916,0.1344,3725.8,3725.7,5.7703992]
[1753444648251,0.1344,3725.8,3725.7,3.08633983]
[1753444648616,0.1344,3725.8,3725.7,5.7703992]
[1753444649118,1.1481,3726.8,3726.1,2.68372212]
[1753444649338,4.08091203,3727.2,3726.3,1.1355]
[1753444649658,0.1344,3726.5,3726.4,7.29115517]
[1753444649961,0.1344,3726.5,3726.4,7.97375517]
[1753444652213,0.1344,3726.5,3726.4,5.2902]
[1753444653357,0.1344,3726.5,3726.4,7.97375517]
[1753444653722,0.1344,3726.5,3726.4,5.2902]
[1753444655645,1.1464,3726.4,3725.6,0.6826]
[1753444655831,2.68385078,3726.0,3725.7,4.14]
[1753444656047,0.1344,3725.8,3725.7,4.8349]
[1753444656564,0.1344,3725.8,3725.7,4.14]
[1753444656761,0.1344,3725.8,3725.7,7.51895937]
[1753444656962,2.68349176,3726.5,3725.7,6.44635]
[1753444657164,0.1344,3726.2,3725.8,1.5621]
[1753444657377,0.1344,3726.2,3725.9,6.82288748]
[1753444657555,0.1344,3726.2,3725.9,7.95468748]
[1753444657877,0.1344,3726.2,3726.0,2.43908895]
[1753444658076,0.1344,3726.2,3726.1,4.139]
[1753444658378,0.1344,3726.2,3726.1,5.2708]
[1753444659351,1.0957,3727.0,3726.1,5.2708]
[1753444659554,0.1344,3726.4,3726.2,1.1318]
[1753444659770,0.1344,3726.4,3726.3,5.06518356]
[1753444659954,0.1344,3726.4,3726.3,6.19698356]
[1753444661248,0.1344,3726.5,3726.3,6.19698356]
[1753444661450,0.1344,3726.5,3726.4,1.1318]
[1753444664189,0.1344,3726.5,3726.4,0.6949]
[1753444664683,0.1344,3726.5,3726.3,4.139]
[1753444664889,2.68356934,3726.4,3725.9,0.6949]
[1753444665096,0.1344,3726.3,3726.0,4.138]
[1753444665251,0.1344,3726.3,3726.0,4.8329]
[1753444665460,0.1344,3726.3,3726.1,0.6949]
[1753444665757,0.1344,3726.3,3726.2,4.138]
[1753444666488,0.1344,3726.3,3726.2,4.8329]
[1753444666990,1.2466,3726.3,3725.9,3.0]
[1753444667153,1.2466,3726.3,3725.5,3.8568622]
[1753444667154,2.68390778,3726.0,3725.6,0.6949]
[1753444667483,0.1344,3726.1,3725.7,4.8329]
[1753444667484,2.81835701,3725.9,3725.7,4.8329]
[1753444667693,2.81835701,3725.9,3725.7,4.138]
[1753444668054,2.81831529,3725.9,3725.8,4.138]
[1753444668249,2.68391529,3725.9,3725.8,4.138]
[1753444668458,2.81831529,3725.9,3725.8,4.138]
[1753444669191,2.81838638,3725.9,3725.8,4.138]
[1753444669579,3.91768638,3725.9,3725.8,4.138]
[1753444670571,3.91768638,3725.9,3725.5,0.001]
[1753444670572,2.68413141,3725.6,3725.5,0.001]
[1753444670771,7.45353141,3725.6,3725.5,0.001]
[1753444671002,7.54133141,3725.6,3725.5,1e-08]
[1753444671569,7.78604602,3725.6,3725.5,1e-08]
[1753444671786,11.92304602,3725.6,3725.5,1e-08]
[1753444672502,11.67833141,3725.6,3725.5,1e-08]
[1753444672817,7.45353141,3725.6,3725.5,1e-08]
[1753444673202,7.46393141,3725.6,3725.5,1e-08]
[1753444673369,7.54133141,3725.6,3725.5,1e-08]
[1753444674779,7.45353141,3725.6,3725.5,1e-08]
[1753444675483,7.46393141,3725.6,3725.5,1e-08]
[1753444676206,7.45353141,3725.6,3725.5,1e-08]
[1753444676384,4.45353141,3725.6,3725.5,1e-08]
[1753444680091,4.46393141,3725.6,3725.5,1e-08]
[1753444680298,4.45353141,3725.6,3725.5,1e-08]
[1753444681808,3.90353141,3725.6,3725.5,1e-08]
[1753444682008,2.81853141,3725.6,3725.5,1.13180001]
[1753444682377,0.1344,3725.6,3725.5,1.13180001]
[1753444682573,0.1344,3725.6,3725.5,2.28580001]
[1753444682784,0.1344,3725.7,3725.5,2.92808001]
[1753444683007,1.1554,3726.7,3725.6,1.1318]
[1753444683317,0.1344,3725.9,3725.7,1.1318]
[1753444683510,0.1344,3725.9,3725.8,1.1318]
[1753444685279,2.684032,3725.8,3725.6,0.4369]
[1753444685478,2.684032,3725.8,3725.7,4.137]
[1753444685709,2.68389838,3726.0,3725.7,4.5739]
[1753444685906,0.2492377,3726.5,3725.8,1.1318]
[1753444686139,2.68362488,3726.4,3725.9,1.1342]
[1753444686432,0.1344,3726.4,3726.0,2.2794]
[1753444686640,0.1344,3726.5,3726.2,2.68363817]
[1753444686837,2.93237019,3727.0,3726.3,4.90168793]
[1753444687043,0.1344,3726.7,3726.4,2.2219]
[1753444687228,0.1344,3726.7,3726.5,1.1342]
[1753444687612,2.81778781,3726.7,3726.6,0.6733]
[1753444687800,2.81773914,3726.7,3726.6,4.137]
[1753444688006,2.81773914,3726.7,3726.6,5.2712]
[1753444688308,0.1344,3726.7,3726.6,5.2712]
[1753444688504,2.81773914,3726.7,3726.6,5.2712]
[1753444688719,0.1344,3726.7,3726.6,5.2712]
[1753444691162,0.1344,3726.7,3726.6,7.95461115]
[1753444691308,0.1344,3726.7,3726.6,5.2712]
[1753444691508,0.1344,3726.8,3726.7,1.1687]
[1753444691708,0.1344,3726.8,3726.7,2.3029]
[1753444693037,2.81766714,3726.8,3726.7,1.1342]
[1753444693545,2.81766714,3726.8,3726.7,5.2692]
[1753444694640,0.1344,3726.8,3726.7,5.2692]
[1753444695210,2.81766714,3726.8,3726.7,5.2692]
[1753444697038,0.1344,3726.8,3726.7,5.2692]
[1753444697234,2.81766714,3726.8,3726.7,5.2692]
[1753444698149,2.68348316,3726.5,3726.2,0.4609]
[1753444698354,0.1344,3726.4,3726.3,5.2692]
[1753444698557,0.1344,3726.4,3726.3,4.5959]
[1753444698747,0.1344,3726.4,3726.3,5.2692]
[1753444698950,2.81795517,3726.4,3726.3,5.2692]
[1753444699264,2.81795517,3726.4,3726.3,4.8083]
[1753444700261,2.81795517,3726.4,3726.3,5.2692]
[1753444701183,0.1344,3726.4,3726.3,5.2692]
[1753444701648,0.1344,3726.4,3726.3,5.79612]
[1753444701836,0.1344,3726.4,3726.3,5.2692]
[1753444703062,2.81795517,3726.4,3726.3,4.8083]
[1753444703225,0.1344,3726.4,3726.3,5.2692]
[1753444705835,2.81795517,3726.4,3726.3,5.2692]
[1753444706167,0.1344,3726.4,3726.3,5.2692]
[1753444707833,2.81795517,3726.4,3726.3,5.2692]
[1753444708055,2.81795517,3726.4,3726.3,4.133]
[1753444708056,0.1344,3726.4,3726.3,4.133]
[1753444708775,2.81795517,3726.4,3726.3,4.133]
[1753444708958,2.81795517,3726.4,3726.0,0.6733]
[1753444709163,2.68365318,3726.3,3726.1,4.8063]
[1753444709331,2.68356807,3726.4,3726.2,0.6733]
[1753444709538,2.68349597,3726.5,3726.3,5.2672]
[1753444709774,2.68349597,3726.5,3726.4,5.2672]
[1753444710373,0.1344,3726.5,3726.4,5.2672]
[1753444716971,0.1344,3726.5,3726.4,5.2662]
[1753444724611,0.1364,3726.5,3726.4,5.2662]
[1753444725923,0.1364,3726.5,3726.4,4.8043]
[1753444725924,2.81988316,3726.5,3726.4,4.8043]
[1753444726214,2.81988316,3726.5,3726.4,4.131]
[1753444726783,2.81988316,3726.5,3725.5,0.69730001]
[1753444726784,0.1364,3726.5,3725.5,0.69730001]
[1753444726990,2.81853141,3725.6,3725.5,1e-08]
[1753444727496,2.81853141,3725.6,3725.5,4.13100001]
[1753444727905,2.81853141,3725.6,3725.5,1e-08]
[1753444728122,3.97993141,3725.6,3725.5,4.13100001]
[1753444728286,3.97993141,3725.6,3725.5,1e-08]
[1753444728489,3.90253141,3725.6,3725.5,1e-08]
[1753444728688,4.39553141,3725.6,3725.5,1e-08]
[1753444728987,4.31813141,3725.6,3725.5,1e-08]
[1753444731593,3.76813141,3725.6,3725.5,1e-08]
[1753444733524,2.68413141,3725.6,3725.5,0.69730001]
[1753444733704,2.68413141,3725.6,3725.5,1.13950001]
[1753444738208,2.68413141,3725.6,3725.5,1e-08]
[1753444738828,2.81853141,3725.6,3725.5,4.13100001]
[1753444739203,2.81853141,3725.6,3725.5,5.27050001]
[1753444741703,0.1344,3725.6,3725.5,5.27050001]
[1753444744108,2.81853141,3725.6,3725.5,5.27050001]
[1753444744509,2.81853141,3725.6,3725.5,1.13950001]
[1753444744820,2.81853141,3725.6,3725.5,5.26950001]
[1753444745222,0.1344,3725.6,3725.5,5.26950001]
[1753444746046,0.1364,3725.6,3725.5,5.26950001]
[1753444746611,2.82053141,3725.6,3725.5,1.13950001]
[1753444746943,2.82053141,3725.6,3725.5,4.13000001]
[1753444747135,2.82053141,3725.6,3725.5,4.77060001]
[1753444747440,2.82053141,3725.6,3725.5,5.21670001]
[1753444748044,0.1364,3725.6,3725.5,5.21670001]
[1753444748349,2.82053141,3725.6,3725.5,5.21670001]
[1753444749224,2.82053141,3725.6,3725.5,0.64060001]
[1753444749548,2.82053141,3725.6,3725.5,4.77060001]
[1753444750060,2.82053141,3725.6,3725.5,0.64060001]
[1753444750251,2.82053141,3725.6,3725.5,1e-08]
[1753444750418,4.34941962,3725.2,3725.1,1e-08]
[1753444750617,13.57566557,3725.2,3725.1,1e-08]
[1753444751855,13.65306557,3725.2,3725.1,1e-08]
[1753444752322,6.79941962,3725.2,3725.1,1e-08]
[1753444752525,3.79941962,3725.2,3725.1,1e-08]
[1753444753429,2.68441962,3725.2,3725.1,1.08670001]
[1753444754756,2.68441962,3725.2,3725.1,1e-08]
[1753444756852,2.68441962,3725.2,3725.1,0.64060001]
[1753444757767,2.68441962,3725.2,3725.1,1.08670001]
[1753444758435,2.68441962,3725.2,3725.1,0.64060001]
[1753444758633,2.68441962,3725.2,3725.1,1e-08]
[1753444758831,2.68441962,3725.2,3725.1,1.08670001]
[1753444759764,1.1061,3725.5,3725.1,1.08670001]
[1753444759765,2.684415,3725.3,3725.1,0.64060001]
[1753444760062,2.68614358,3725.6,3725.2,0.4461]
[1753444760262,2.68432623,3725.4,3725.2,0.4461]
[1753444760466,2.68432623,3725.4,3725.3,0.6406]
[1753444760645,2.68432623,3725.4,3725.3,4.7696]
[1753444760845,2.81872623,3725.4,3725.3,5.2157]
[1753444761272,0.1344,3725.4,3725.3,5.2157]
[1753444761672,2.81867551,3725.4,3725.3,5.2157]
[1753444761994,0.1344,3725.4,3725.3,5.2157]
[1753444762591,2.81867551,3725.4,3725.3,5.2157]
[1753444762793,0.1344,3725.4,3725.3,5.2157]
[1753444763374,2.81867551,3725.4,3725.3,5.2157]
[1753444764480,0.1344,3725.4,3725.3,5.2157]
[1753444765512,2.81867551,3725.4,3725.3,5.2157]
[1753444766278,2.68441962,3725.2,3725.1,1e-08]
[1753444767515,2.68441962,3725.2,3725.1,1.08670001]
[1753444767721,2.68441962,3725.2,3725.1,1e-08]
[1753444768009,2.68441962,3725.2,3725.1,1.08670001]
[1753444769010,2.68441962,3725.2,3725.1,0.64060001]
[1753444769217,2.68441962,3725.2,3725.1,1e-08]
[1753444770788,2.68441962,3725.2,3725.1,1.08670001]
[1753444772720,2.68437045,3725.3,3725.1,1.08670001]
[1753444772919,2.68437045,3725.3,3725.2,5.2147]
[1753444773624,2.68434756,3725.3,3725.2,5.2147]
[1753444774331,2.68431771,3725.4,3725.2,5.2147]
[1753444774502,2.68431771,3725.4,3725.3,1.0867]
[1753444775889,0.002,3725.6,3725.3,1.0867]
[1753444776093,2.68420346,3725.5,3725.4,1.0735]
[1753444776604,2.81860346,3725.5,3725.4,1.0735]
[1753444778132,2.81860346,3725.5,3725.4,0.6357]
[1753444778304,2.68441962,3725.2,3725.1,1e-08]
[1753444778508,2.68441962,3725.2,3725.1,4.76370001]
[1753444780644,2.68441962,3725.2,3725.1,0.63570001]
[1753444780796,2.68441962,3725.2,3725.1,1e-08]
[1753444780995,2.68441962,3725.2,3725.1,4.12800001]
[1753444781392,2.68441962,3725.2,3725.1,1e-08]
[1753444781592,3.83661962,3725.2,3725.1,1e-08]
[1753444781792,8.59201962,3725.2,3725.1,1e-08]
[1753444782728,11.59201962,3725.2,3725.1,1e-08]
[1753444782897,11.84243597,3725.2,3725.1,1e-08]
[1753444783428,4.08703597,3725.2,3725.1,1e-08]
[1753444783729,7.96361962,3725.2,3725.1,1e-08]
[1753444784226,3.83661962,3725.2,3725.1,1e-08]
[1753444784431,2.68441962,3725.2,3725.1,1.07350001]
[1753444784626,2.68441962,3725.2,3725.1,1e-08]
[1753444785533,3.80801962,3725.2,3725.1,1e-08]
[1753444787730,3.88541962,3725.2,3725.1,1e-08]
[1753444788119,6.88541962,3725.2,3725.1,1e-08]
[1753444788315,10.93601962,3725.2,3725.1,1e-08]
[1753444791037,6.80801962,3725.2,3725.1,1e-08]
[1753444791208,10.93601962,3725.2,3725.1,1e-08]
[1753444791408,10.93501962,3725.2,3725.1,1e-08]
[1753444793034,6.80801962,3725.2,3725.1,1e-08]
[1753444793240,10.93501962,3725.2,3725.1,1e-08]
[1753444794917,11.48501962,3725.2,3725.1,1e-08]
[1753444796809,7.60798045,3725.2,3725.1,1e-08]
[1753444797109,11.73498045,3725.2,3725.1,1e-08]
[1753444797340,11.48501962,3725.2,3725.1,1e-08]
[1753444800317,11.48501962,3725.2,3725.1,0.63570001]
[1753444800318,7.35801962,3725.2,3725.1,0.63570001]
[1753444800536,7.35801962,3725.2,3725.1,1.07350001]
[1753444800537,2.68441962,3725.2,3725.1,1.07350001]
[1753444800711,7.1764,3725.3,3725.1,1.07350001]
[1753444800712,0.002,3725.3,3725.1,1.07350001]
[1753444800910,2.68434756,3725.3,3725.2,1.29077]
[1753444803209,2.68434756,3725.3,3725.2,1.0735]
[1753444803932,0.002,3725.6,3725.3,1.0834]
[1753444804132,0.002,3725.6,3725.3,2.1569]
[1753444804133,2.68614433,3725.6,3725.3,2.1569]
[1753444804446,2.68427551,3725.4,3725.3,1.0834]
[1753444804645,2.68421192,3725.5,3725.3,1.0834]
[1753444804949,0.002,3725.6,3725.3,1.0834]
[1753444805133,2.68441962,3725.2,3725.1,1e-08]
[1753444805309,0.002,3725.6,3725.1,1e-08]
[1753444805715,2.68431335,3725.4,3725.2,1.0735]
[1753444805942,2.68431335,3725.4,3725.3,1.28919]
[1753444806539,0.002,3725.6,3725.4,1.0834]
[1753444806858,0.002,3725.6,3725.5,1.0968]
[1753444809063,0.002,3725.6,3725.5,2.2166]
[1753444811168,0.002,3725.6,3725.5,7.92764549]
[1753444811328,0.002,3725.6,3725.5,10.0322264]
[1753444812249,0.002,3725.6,3725.5,10.5822264]
[1753444812656,0.002,3726.2,3726.1,5.68377123]
[1753444812861,0.002,3726.2,3726.1,10.95147123]
[1753444813060,0.002,3726.2,3726.1,12.18267123]
[1753444813261,0.002,3726.2,3726.1,14.56034006]
[1753444815132,0.002,3726.2,3726.1,11.87656883]
[1753444815332,0.002,3726.2,3726.1,11.74216883]
[1753444815732,0.002,3726.2,3726.1,11.74116883]
[1753444816271,0.002,3726.2,3726.1,2.2395]
[1753444816435,0.002,3726.2,3726.1,9.3635]
[1753444817455,0.002,3726.2,3726.1,5.2395]
[1753444817757,0.002,3726.2,3726.1,9.3635]
[1753444817953,0.002,3726.2,3726.1,5.2395]
[1753444818159,0.002,3726.2,3726.1,6.04528741]
[1753444818558,0.002,3726.2,3726.1,10.16928741]
[1753444819065,0.002,3726.2,3726.1,6.04528741]
[1753444819369,0.002,3726.2,3726.1,9.3635]
[1753444819864,0.002,3726.2,3726.1,2.2395]
[1753444820238,0.002,3726.2,3726.1,6.3635]
[1753444820639,0.002,3726.2,3726.1,2.2395]
[1753444820839,0.002,3726.2,3726.1,4.124]
[1753444821439,0.002,3726.2,3725.8,2.4016]
[1753444821641,0.002,3726.2,3725.9,4.124]
[1753444821962,0.002,3726.2,3725.9,5.2208]
[1753444822140,0.002,3726.2,3726.0,1.0968]
[1753444822574,0.002,3726.2,3726.1,1.0968]
[1753444823739,0.002,3726.2,3726.1,7.92487123]
[1753444823971,0.002,3726.2,3726.1,6.93231333]
[1753444824777,0.002,3726.2,3726.1,10.92191333]
[1753444824976,0.002,3726.2,3726.1,9.3651]
[1753444825143,0.002,3726.2,3725.8,1.1086]
[1753444825338,0.002,3726.2,3726.0,3.0]
[1753444825653,0.002,3726.2,3725.8,1.1086]
[1753444825654,0.002,3726.2,3726.1,4.124]
[1753444826249,2.68569921,3726.2,3726.1,4.124]
[1753444826652,2.68569921,3726.2,3725.9,0.6393]
[1753444826869,2.68569921,3726.2,3726.0,4.123]
[1753444826870,2.68377123,3726.1,3726.0,4.123]
[1753444827052,2.81817123,3726.1,3726.0,4.123]
[1753444828472,0.1344,3726.1,3726.0,4.123]
[1753444828672,2.81817123,3726.1,3726.0,4.123]
[1753444829969,2.68386484,3726.0,3725.7,0.6393]
[1753444830183,2.81819978,3726.1,3725.8,4.123]
[1753444830367,2.81819978,3726.1,3725.8,5.2198]
[1753444830548,2.68385432,3726.0,3725.8,5.2198]
[1753444830952,2.81819651,3726.1,3725.8,5.2198]
[1753444831171,2.68384469,3726.0,3725.8,5.2198]
[1753444831864,2.68391529,3725.9,3725.8,0.4575]
[1753444832180,0.1344,3725.9,3725.8,4.5805]
[1753444832560,0.1344,3725.9,3725.8,5.2198]
[1753444837862,0.002,3726.2,3725.8,5.2198]
[1753444838069,0.1344,3726.1,3725.8,4.123]
[1753444838270,0.1344,3726.1,3725.9,1.0894]
[1753444838468,0.1344,3726.1,3726.0,4.123]
[1753444838664,0.1344,3726.1,3726.0,5.2124]
[1753444840592,0.002,3726.2,3726.1,1.1969]
[1753444841090,0.002,3726.2,3726.1,4.97007123]
[1753444841402,0.002,3726.2,3726.1,6.14776666]
[1753444841570,0.002,3726.2,3726.1,9.14776666]
[1753444841900,0.002,3726.2,3726.1,9.28216666]
[1753444844589,0.002,3726.2,3726.1,6.59839543]
[1753444844804,0.002,3726.2,3726.1,9.28216666]
[1753444846794,0.002,3726.2,3726.1,13.40416666]
[1753444848492,0.002,3726.2,3726.1,9.28216666]
[1753444848693,0.002,3726.2,3726.1,13.40416666]
[1753444854646,0.002,3726.2,3726.1,9.28216666]
[1753444854950,0.002,3726.2,3726.1,13.40316666]
[1753444860359,1e-08,3726.4,3726.3,3.23362719]
[1753444860519,1e-08,3727.0,3726.9,3.77549514]
[1753444860720,0.002,3728.1,3727.8,6.77484734]
[1753444860919,0.002,3728.1,3727.8,17.12244183]
[1753444861222,0.002,3728.1,3727.8,18.34624183]
[1753444861819,1e-08,3728.1,3728.0,2.68240343]
[1753444862155,1e-08,3728.1,3728.0,13.46313076]
[1753444862341,1e-08,3728.1,3728.0,14.75091916]
[1753444862543,0.002,3728.8,3728.7,6.82449985]
[1753444862767,0.002,3728.8,3728.7,10.94449985]
[1753444863122,0.002,3728.8,3728.7,8.04829985]
[1753444863323,0.002,3728.8,3728.7,13.24132871]
[1753444863717,0.002,3728.8,3728.7,9.12132871]
[1753444864135,0.002,3728.8,3728.7,13.24132871]
[1753444864630,0.002,3728.8,3728.7,9.12132871]
[1753444864869,0.002,3728.8,3728.7,13.24132871]
[1753444868273,2.75815448,3730.3,3728.7,13.24132871]
[1753444868274,1.6542,3730.1,3729.4,1.1386]
[1753444868441,1.6542,3730.1,3729.9,2.68103433]
[1753444868629,1.0854,3730.1,3730.0,4.118]
[1753444868961,1.1628,3730.1,3730.0,4.118]
[1753444869170,1.7316,3730.1,3730.0,4.118]